bitfinex/quotes_SOLUSD_20241111
["timestamp","ask_amount","ask_price","bid_price","bid_amount"]
[1731306663659,16.91373742,207.11,207.03,16.91373742]
[1731306663973,4.8278,207.14,207.03,16.91373742]
[1731306664155,22.1213,207.16,206.98,19.31199368]
[1731306664156,20.3321,207.16,207.05,16.91373742]
[1731306664349,16.91373742,207.13,207.07,20.0]
[1731306664551,16.91373742,207.13,207.06,20.0]
[1731306665075,16.91373742,207.11,207.05,20.0]
[1731306665250,16.91373742,207.11,207.03,16.91373742]
[1731306665454,16.91373742,207.12,207.05,16.91373742]
[1731306665761,16.91373742,207.11,207.04,16.91373742]
[1731306666569,16.91373742,207.11,207.05,20.0]
[1731306666873,16.91373742,207.13,207.06,36.91373742]
[1731306667062,16.91373742,207.13,207.06,20.0]
[1731306667661,16.91373742,207.12,207.06,20.0]
[1731306668666,16.91373742,207.13,207.06,20.0]
[1731306668975,16.91373742,207.12,207.06,20.0]
[1731306669278,16.91373742,207.12,207.05,20.0]
[1731306669463,16.91373742,207.11,207.05,20.0]
[1731306669662,16.91373742,207.12,207.05,20.0]
[1731306669866,16.91373742,207.13,207.06,36.91373742]
[1731306670171,16.91373742,207.14,207.08,20.0]
[1731306670675,16.91373742,207.13,207.08,20.0]
[1731306670858,16.91373742,207.12,207.06,20.0]
[1731306671256,16.91373742,207.13,207.06,20.0]
[1731306671767,2.950002,207.17,207.13,20.0]
[1731306671969,2.950002,207.17,207.13,36.91373742]
[1731306672164,2.950002,207.17,207.13,20.0]
[1731306672474,2.950002,207.17,207.16,36.91373742]
[1731306672661,4.8238,207.31,207.19,16.91373742]
[1731306672971,16.91373742,207.28,207.19,16.91373742]
[1731306673276,16.91373742,207.29,207.21,16.91373742]
[1731306673452,16.91373742,207.31,207.23,16.91373742]
[1731306674570,16.91373742,207.3,207.23,16.91373742]
[1731306674992,16.91373742,207.27,207.21,20.0]
[1731306676166,16.91373742,207.26,207.19,16.91373742]
[1731306676364,16.91373742,207.25,207.18,16.91373742]
[1731306676673,21.73763742,207.3,207.15,16.0436]
[1731306676674,16.91373742,207.23,207.16,16.91373742]
[1731306677654,16.91373742,207.27,207.2,16.91373742]
[1731306677857,32.88363742,207.28,207.21,16.91373742]
[1731306678063,16.91373742,207.27,207.2,16.91373742]
[1731306678378,16.91373742,207.25,207.18,16.91373742]
[1731306678551,16.91373742,207.26,207.19,16.91373742]
[1731306678754,16.91373742,207.25,207.18,16.91373742]
[1731306678960,16.91373742,207.24,207.16,20.0]
[1731306679164,16.91373742,207.23,207.16,36.91373742]
[1731306679351,16.91373742,207.24,207.17,16.91373742]
[1731306680175,16.91373742,207.25,207.18,16.91373742]
[1731306680471,16.91373742,207.25,207.16,20.0]
[1731306680472,16.91373742,207.24,207.17,16.91373742]
[1731306681266,16.91373742,207.25,207.18,36.91373742]
[1731306681470,16.91373742,207.25,207.18,16.91373742]
[1731306681673,16.91373742,207.26,207.19,16.91373742]
[1731306681871,16.91373742,207.25,207.19,20.0]
[1731306682468,16.91373742,207.26,207.19,16.91373742]
[1731306682667,16.91373742,207.25,207.19,20.0]
[1731306683070,16.91373742,207.25,207.18,20.0]
[1731306683776,20.7944,207.28,207.15,16.0436]
[1731306683777,15.9699,207.28,207.19,16.91373742]
[1731306683979,16.91373742,207.26,207.19,16.91373742]
[1731306684679,16.91373742,207.24,207.16,20.0]
[1731306684973,16.91373742,207.25,207.18,20.0]
[1731306685379,16.91373742,207.25,207.18,36.91373742]
[1731306685983,16.91373742,207.24,207.17,16.91373742]
[1731306686178,16.91373742,207.26,207.19,20.0]
[1731306686369,16.91373742,207.3,207.22,16.91373742]
[1731306686570,16.91373742,207.28,207.19,20.0]
[1731306686776,16.91373742,207.28,207.21,20.0]
[1731306687188,16.91373742,207.25,207.18,16.91373742]
[1731306687375,16.91373742,207.26,207.19,36.91373742]
[1731306687676,16.91373742,207.25,207.19,20.0]
[1731306688182,19.542388,207.38,207.18,16.91373742]
[1731306688478,16.91373742,207.3,207.24,20.0]
[1731306689078,16.91373742,207.3,207.23,20.0]
[1731306689460,16.91373742,207.29,207.23,20.0]
[1731306689678,16.91373742,207.29,207.22,36.91373742]
[1731306690178,16.91373742,207.28,207.22,20.0]
[1731306690379,16.91373742,207.29,207.22,16.91373742]
[1731306690577,16.91373742,207.29,207.23,20.0]
[1731306690783,16.91373742,207.28,207.23,20.0]
[1731306691085,4.8233,207.33,207.21,20.0]
[1731306691086,16.91373742,207.27,207.21,20.0]
[1731306691278,16.91373742,207.28,207.21,16.91373742]
[1731306691970,16.91373742,207.28,207.22,20.0]
[1731306692692,16.91373742,207.27,207.21,20.0]
[1731306693177,4.8239,207.3,207.21,20.0]
[1731306693178,16.91373742,207.28,207.21,20.0]
[1731306693393,16.91373742,207.28,207.22,20.0]
[1731306693684,16.91373742,207.27,207.22,20.0]
[1731306693990,16.91373742,207.28,207.21,16.91373742]
[1731306694174,16.91373742,207.28,207.22,20.0]
[1731306694574,16.91373742,207.27,207.21,20.0]
[1731306695288,16.91373742,207.24,207.17,16.91373742]
[1731306696379,16.91373742,207.24,207.18,20.0]
[1731306699466,16.91373742,207.25,207.18,16.91373742]
[1731306699672,15.2201,207.29,207.15,16.0436]
[1731306699673,16.91373742,207.26,207.19,36.91373742]
[1731306700016,15.2201,207.29,207.23,16.91373742]
[1731306700285,16.91373742,207.28,207.21,16.91373742]
[1731306700878,16.91373742,207.27,207.2,16.91373742]
[1731306701067,16.91373742,207.28,207.22,16.91373742]
[1731306701267,16.91373742,207.28,207.21,16.91373742]
[1731306702184,16.91373742,207.29,207.22,16.91373742]
[1731306702571,16.91373742,207.28,207.22,16.91373742]
[1731306702892,16.91373742,207.27,207.21,20.0]
[1731306703075,16.91373742,207.25,207.2,20.0]
[1731306703283,15.3546,207.33,207.15,16.0436]
[1731306703284,16.91373742,207.29,207.22,16.91373742]
[1731306704063,16.91373742,207.27,207.22,20.0]
[1731306704364,15.3546,207.33,207.22,36.91373742]
[1731306704365,16.91373742,207.29,207.22,36.91373742]
[1731306704992,16.91373742,207.27,207.22,20.0]
[1731306705172,16.91373742,207.28,207.21,20.0]
[1731306705368,16.91373742,207.28,207.2,16.91373742]
[1731306705690,16.91373742,207.27,207.21,20.0]
[1731306705869,23.776884,207.32,207.18,16.91373742]
[1731306705870,16.91373742,207.26,207.18,16.91373742]
[1731306706070,16.91373742,207.26,207.19,20.0]
[1731306706270,16.91373742,207.28,207.21,16.91373742]
[1731306706470,16.91373742,207.29,207.21,16.91373742]
[1731306706873,16.91373742,207.28,207.21,16.91373742]
[1731306708487,16.91373742,207.29,207.22,20.0]
[1731306708700,16.91373742,207.27,207.19,16.91373742]
[1731306708985,16.91373742,207.27,207.2,16.91373742]
[1731306709591,16.91373742,207.24,207.2,20.0]
[1731306709793,16.91373742,207.24,207.16,20.0]
[1731306709794,16.91373742,207.25,207.19,20.0]
[1731306709992,16.91373742,207.26,207.19,20.0]
[1731306710287,16.91373742,207.29,207.22,16.91373742]
[1731306712187,16.91373742,207.31,207.24,16.91373742]
[1731306713090,16.91373742,207.31,207.23,16.91373742]
[1731306714371,32.26833742,207.33,207.26,16.91373742]
[1731306714571,32.26833742,207.33,207.25,20.0]
[1731306714572,32.26833742,207.33,207.25,36.91373742]
[1731306715101,16.91373742,207.32,207.25,36.91373742]
[1731306715280,32.26833742,207.33,207.26,16.91373742]
[1731306715690,15.3546,207.33,207.28,16.91373742]
[1731306715992,15.3546,207.33,207.27,16.91373742]
[1731306716186,32.26833742,207.33,207.26,16.91373742]
[1731306716391,32.26833742,207.33,207.27,20.0]
[1731306718299,16.91373742,207.32,207.26,20.0]
[1731306718670,4.8225,207.36,207.26,20.0]
[1731306718671,16.91373742,207.31,207.26,20.0]
[1731306718881,16.91373742,207.32,207.25,16.91373742]
[1731306719097,16.91373742,207.32,207.26,20.0]
[1731306719404,16.91373742,207.31,207.25,20.0]
[1731306719690,16.91373742,207.3,207.23,16.91373742]
[1731306720080,16.91373742,207.31,207.23,16.91373742]
[1731306720805,16.91373742,207.28,207.21,16.91373742]
[1731306721093,16.91373742,207.25,207.14,6.0612]
[1731306721288,16.91373742,207.28,207.21,16.91373742]
[1731306721484,33.31063742,207.29,207.22,16.91373742]
[1731306721789,16.91373742,207.26,207.19,16.91373742]
[1731306721995,16.91373742,207.23,207.16,16.91373742]
[1731306722581,16.91373742,207.2,207.13,16.91373742]
[1731306723196,16.91373742,207.17,207.04,22.162]
[1731306723498,16.91373742,207.17,207.1,16.91373742]
[1731306723883,16.91373742,207.13,207.04,22.162]
[1731306724099,16.91373742,207.13,207.07,16.91373742]
[1731306724279,16.91373742,207.17,207.1,16.91373742]
[1731306724684,23.776884,207.19,206.99,22.5464]
[1731306724876,16.91373742,207.13,207.0,0.12549]
[1731306725189,16.91373742,207.15,207.08,16.91373742]
[1731306725392,16.91373742,207.14,207.07,16.91373742]
[1731306725796,23.776884,207.19,207.06,16.91373742]
[1731306725797,16.91373742,207.13,207.06,16.91373742]
[1731306725987,16.91373742,207.12,207.06,16.91373742]
[1731306726195,16.91373742,207.13,207.06,16.91373742]
[1731306726589,16.91373742,207.13,207.07,20.0]
[1731306726799,16.91373742,207.14,207.07,16.91373742]
[1731306727488,16.91373742,207.13,207.06,16.91373742]
[1731306727797,16.91373742,207.13,207.07,20.0]
[1731306727997,16.91373742,207.13,206.99,25.74740004]
[1731306727998,16.91373742,207.11,207.04,16.91373742]
[1731306728307,16.91373742,207.11,206.99,25.74740004]
[1731306728308,16.91373742,207.08,207.01,16.91373742]
[1731306729003,16.91373742,207.06,207.0,16.91373742]
[1731306729800,16.91373742,207.06,206.99,16.91373742]
[1731306730209,16.91373742,207.08,207.01,16.91373742]
[1731306730386,16.91373742,207.08,207.02,16.91373742]
[1731306730781,16.91373742,207.08,207.01,16.91373742]
[1731306731103,16.91373742,207.08,207.02,20.0]
[1731306731406,16.91373742,207.06,207.0,20.0]
[1731306731899,16.91373742,207.06,206.99,16.91373742]
[1731306732103,16.91373742,207.05,206.99,20.0]
[1731306732397,16.91373742,207.0,206.9,16.91373742]
[1731306732603,16.91373742,206.96,206.89,32.18483742]
[1731306732805,16.91373742,206.97,206.9,16.91373742]
[1731306733019,16.91373742,206.98,206.91,16.91373742]
[1731306733200,16.91373742,206.99,206.92,16.91373742]
[1731306733503,15.8213,207.01,206.85,15.3711]
[1731306733504,16.91373742,206.97,206.9,16.91373742]
[1731306733700,16.91373742,206.97,206.91,20.0]
[1731306734303,16.91373742,206.98,206.91,16.91373742]
[1731306734520,16.91373742,206.98,206.92,20.0]
[1731306734895,16.1647,207.09,206.98,20.0]
[1731306735086,16.91373742,207.08,207.01,16.91373742]
[1731306735402,16.91373742,207.11,207.04,16.91373742]
[1731306735707,16.91373742,207.09,207.03,20.0]
[1731306735887,16.91373742,207.08,207.02,20.0]
[1731306736087,16.91373742,207.07,207.02,20.0]
[1731306736492,16.91373742,207.05,206.97,16.91373742]
[1731306736697,16.91373742,207.05,206.98,20.0]
[1731306736891,16.91373742,207.1,206.95,23.0054]
[1731306736892,16.91373742,207.04,206.96,36.91373742]
[1731306737097,21.74243742,207.1,206.96,16.91373742]
[1731306737098,16.91373742,207.03,206.96,16.91373742]
[1731306737301,16.91373742,207.04,206.96,16.91373742]
[1731306737500,16.91373742,207.07,207.0,16.91373742]
[1731306738384,16.91373742,207.07,206.95,16.601]
[1731306738385,16.91373742,207.06,206.99,16.91373742]
[1731306738610,16.91373742,207.06,207.0,20.0]
[1731306740801,16.91373742,207.08,207.01,20.0]
[1731306741006,16.91373742,207.08,207.01,36.91373742]
[1731306741809,16.91373742,207.09,207.02,16.91373742]
[1731306742014,16.91373742,207.09,206.96,20.0]
[1731306742015,16.91373742,207.1,207.03,36.91373742]
[1731306742185,16.91373742,207.12,207.05,16.91373742]
[1731306742500,16.91373742,207.12,207.0,16.91373742]
[1731306742501,16.91373742,207.15,207.08,36.91373742]
[1731306742700,15.0522,207.19,207.08,36.91373742]
[1731306742701,16.91373742,207.18,207.12,20.0]
[1731306742889,31.96593742,207.19,207.12,20.0]
[1731306743094,16.91373742,207.2,207.12,36.91373742]
[1731306743393,22.1766,207.25,207.09,16.91373742]
[1731306743394,16.91373742,207.16,207.09,16.91373742]
[1731306743597,16.91373742,207.16,207.1,20.0]
[1731306744197,16.91373742,207.15,207.08,16.91373742]
[1731306744394,16.91373742,207.15,207.09,20.0]
[1731306744797,16.91373742,207.16,207.09,20.0]
[1731306745800,23.776884,207.21,207.07,16.91373742]
[1731306745801,16.91373742,207.15,207.07,16.91373742]
[1731306746003,16.91373742,207.13,207.07,20.0]
[1731306746199,28.603284,207.19,207.04,3.26489998]
[1731306746200,16.91373742,207.11,207.04,16.91373742]
[1731306746394,16.91373742,207.1,207.03,16.91373742]
[1731306746610,16.91373742,207.13,207.06,16.91373742]
[1731306746908,16.91373742,207.14,207.06,16.91373742]
[1731306747122,16.91373742,207.16,207.08,16.91373742]
[1731306747295,16.91373742,207.14,207.07,16.91373742]
[1731306747496,16.91373742,207.14,207.06,16.91373742]
[1731306747697,16.91373742,207.14,207.07,36.91373742]
[1731306748214,16.91373742,207.13,207.06,16.91373742]
[1731306748389,16.91373742,207.13,207.0,33.53663742]
[1731306748390,16.91373742,207.1,207.02,16.91373742]
[1731306748590,16.91373742,207.08,207.0,16.6229]
[1731306748799,16.91373742,207.1,207.03,16.91373742]
[1731306749197,16.91373742,207.09,207.01,16.91373742]
[1731306749396,16.91373742,207.08,207.01,16.91373742]
[1731306749716,16.91373742,207.08,207.0,33.53663742]
[1731306750619,16.91373742,207.06,206.99,16.91373742]
[1731306750822,16.91373742,207.02,206.95,16.91373742]
[1731306751318,16.91373742,207.02,206.94,16.5712]
[1731306751319,16.91373742,207.04,206.97,16.91373742]
[1731306751612,16.91373742,207.06,206.99,16.91373742]
[1731306751824,16.91373742,207.06,206.98,16.91373742]
[1731306752192,16.91373742,207.06,206.99,20.0]
[1731306752620,16.91373742,207.04,206.97,16.91373742]
[1731306752799,16.91373742,207.04,206.94,16.5712]
[1731306752800,16.91373742,207.05,206.98,16.91373742]
[1731306753113,16.91373742,207.06,206.98,16.91373742]
[1731306753325,20.1068,207.1,206.94,16.5712]
[1731306753326,16.91373742,207.04,206.97,16.91373742]
[1731306753703,16.91373742,207.04,206.96,16.91373742]
[1731306753901,16.91373742,207.02,206.95,16.91373742]
[1731306754112,16.91373742,207.04,206.97,16.91373742]
[1731306754508,16.91373742,207.05,206.98,16.91373742]
[1731306754708,16.91373742,207.04,206.97,16.91373742]
[1731306754923,16.91373742,207.03,206.96,16.91373742]
[1731306755123,16.91373742,207.02,206.94,33.48493742]
[1731306755306,16.91373742,207.03,206.96,16.91373742]
[1731306756007,16.91373742,207.01,206.93,23.29723742]
[1731306756301,16.91373742,207.0,206.92,16.91373742]
[1731306756504,16.91373742,207.0,206.89,15.6019]
[1731306756505,16.91373742,207.0,206.93,16.91373742]
[1731306756812,16.91373742,207.0,206.89,18.7852379]
[1731306757013,16.91373742,207.0,206.93,16.91373742]
[1731306757397,16.91373742,207.0,206.94,20.0]
[1731306757595,16.91373742,207.01,206.95,20.0]
[1731306757803,16.91373742,207.0,206.94,20.0]
[1731306757995,16.91373742,207.01,206.94,20.0]
[1731306758906,6.5166,207.04,206.96,20.0]
[1731306759093,16.91373742,207.02,206.96,20.0]
[1731306759617,16.91373742,207.01,206.93,16.91373742]
[1731306759821,16.91373742,207.0,206.94,20.0]
[1731306760397,16.91373742,206.98,206.9,20.0]
[1731306760603,16.91373742,207.02,206.94,16.91373742]
[1731306761115,16.91373742,207.03,206.95,36.91373742]
[1731306761301,23.43033742,207.04,206.96,16.91373742]
[1731306761507,16.91373742,207.07,206.99,16.91373742]
[1731306761710,16.91373742,207.07,207.0,16.91373742]
[1731306762400,15.2782,207.1,207.01,36.91373742]
[1731306762717,15.2782,207.1,207.02,20.0]
[1731306762718,16.91373742,207.09,207.02,20.0]
[1731306762901,16.91373742,207.08,207.02,20.0]
[1731306763307,16.91373742,207.06,206.99,16.91373742]
[1731306763506,16.91373742,207.06,207.0,20.0]
[1731306763707,16.91373742,207.06,206.99,20.0]
[1731306764117,16.91373742,207.04,206.97,16.91373742]
[1731306764323,16.91373742,207.04,206.98,20.0]
[1731306764518,16.91373742,207.05,206.98,36.91373742]
[1731306764817,16.91373742,207.08,207.01,16.91373742]
[1731306765036,16.91373742,207.06,206.99,16.91373742]
[1731306765200,16.91373742,207.06,207.0,20.0]
[1731306765621,16.91373742,207.05,206.98,16.91373742]
[1731306765816,16.91373742,207.04,206.97,16.91373742]
[1731306766123,16.91373742,207.04,206.98,20.0]
[1731306766419,16.91373742,207.05,206.98,16.91373742]
[1731306766608,16.91373742,207.05,206.99,20.0]
[1731306766811,16.91373742,207.07,206.99,36.91373742]
[1731306767005,16.91373742,207.09,207.02,16.91373742]
[1731306767332,24.1277,207.24,207.04,16.91373742]
[1731306767333,16.91373742,207.11,207.04,16.91373742]
[1731306767623,21.5598,207.15,207.03,20.0]
[1731306767624,16.91373742,207.13,207.05,16.91373742]
[1731306767800,16.91373742,207.13,207.06,36.91373742]
[1731306768007,16.91373742,207.13,207.07,20.0]
[1731306768312,16.91373742,207.12,207.07,20.0]
[1731306768624,16.91373742,207.13,207.06,20.0]
[1731306769007,16.91373742,207.12,207.06,20.0]
[1731306769213,16.91373742,207.11,207.05,20.0]
[1731306769720,16.91373742,207.12,207.05,16.91373742]
[1731306769927,16.91373742,207.13,207.06,20.0]
[1731306770908,21.5598,207.15,207.05,20.0]
[1731306770909,16.91373742,207.11,207.05,20.0]
[1731306771208,16.91373742,207.12,207.05,20.0]
[1731306771836,21.5598,207.15,207.02,16.91373742]
[1731306771837,16.91373742,207.1,207.02,16.91373742]
[1731306772002,16.91373742,207.11,207.04,16.91373742]
[1731306772206,16.91373742,207.12,207.05,20.0]
[1731306772511,16.91373742,207.13,207.06,16.91373742]
[1731306773321,16.91373742,207.13,207.07,20.0]
[1731306773625,32.15083742,207.15,207.08,16.91373742]
[1731306773918,4.8261,207.21,207.1,16.91373742]
[1731306773919,16.91373742,207.17,207.1,16.91373742]
[1731306774122,16.91373742,207.17,207.1,36.91373742]
[1731306774431,16.91373742,207.14,207.1,20.0]
[1731306774719,16.91373742,207.12,207.05,20.0]
[1731306775103,16.91373742,207.09,207.0,20.0]
[1731306775308,16.91373742,207.08,207.01,16.91373742]
[1731306775521,0.12549,207.16,207.02,16.91373742]
[1731306775721,16.91373742,207.09,207.02,16.91373742]
[1731306776124,6.2105,207.14,206.99,32.31903742]
[1731306776310,16.91373742,207.09,207.01,16.91373742]
[1731306776830,16.91373742,207.12,207.05,16.91373742]
[1731306777007,16.91373742,207.13,207.06,16.91373742]
[1731306777207,16.91373742,207.14,207.07,16.91373742]
[1731306777519,16.91373742,207.16,207.11,20.0]
[1731306777827,16.91373742,207.14,207.07,16.91373742]
[1731306778129,16.91373742,207.14,207.08,20.0]
[1731306778328,16.91373742,207.12,207.08,20.0]
[1731306778530,16.91373742,207.1,207.03,16.91373742]
[1731306778732,16.91373742,207.1,207.04,20.0]
[1731306779628,16.91373742,207.1,207.03,16.91373742]
[1731306779820,4.8274,207.15,207.03,16.91373742]
[1731306779821,16.91373742,207.11,207.03,16.41373742]
[1731306780537,16.91373742,207.11,207.04,16.91373742]
[1731306780829,16.91373742,207.15,207.08,20.0]
[1731306781032,16.91373742,207.13,207.08,20.0]
[1731306781224,16.91373742,207.14,207.08,20.0]
[1731306781530,16.91373742,207.13,207.06,16.91373742]
[1731306781730,11.0371,207.19,207.01,20.0]
[1731306781731,16.91373742,207.11,207.03,16.91373742]
[1731306781919,16.91373742,207.1,207.03,16.91373742]
[1731306782107,16.91373742,207.11,207.04,16.91373742]
[1731306782306,16.91373742,207.11,206.99,18.70872031]
[1731306782307,16.91373742,207.13,207.06,16.91373742]
[1731306782730,16.91373742,207.12,207.04,16.91373742]
[1731306782922,16.91373742,207.1,207.03,16.91373742]
[1731306784635,16.91373742,207.09,207.02,16.91373742]
[1731306785019,23.776884,207.15,207.04,16.91373742]
[1731306785216,16.91373742,207.11,207.05,20.0]
[1731306785420,16.91373742,207.1,207.05,20.0]
[1731306785724,16.91373742,207.1,207.04,20.0]
[1731306785922,16.91373742,207.09,207.03,20.0]
[1731306786230,16.91373742,207.08,207.02,20.0]
[1731306786413,16.91373742,207.07,207.0,16.91373742]
[1731306786619,16.91373742,207.07,206.99,15.4053]
[1731306786620,16.91373742,207.09,207.01,16.91373742]
[1731306786932,16.91373742,207.12,207.05,16.91373742]
[1731306787231,23.776884,207.15,207.07,16.91373742]
[1731306787232,16.91373742,207.15,207.07,16.91373742]
[1731306787440,16.91373742,207.17,207.1,16.91373742]
[1731306787617,15.5802,207.24,207.09,20.0]
[1731306787813,15.5802,207.24,207.18,20.0]
[1731306788019,16.91373742,207.25,207.18,20.0]
[1731306788420,15.5802,207.29,207.16,20.0]
[1731306788421,16.91373742,207.22,207.16,20.0]
[1731306788625,16.91373742,207.22,207.15,20.0]
[1731306788810,20.4044,207.29,207.15,20.0]
[1731306788811,16.91373742,207.21,207.15,20.0]
[1731306789017,16.91373742,207.23,207.17,20.0]
[1731306789232,20.4044,207.29,207.17,20.0]
[1731306789233,16.91373742,207.24,207.17,36.91373742]
[1731306789622,16.91373742,207.23,207.17,20.0]
[1731306789825,16.91373742,207.22,207.16,20.0]
[1731306790332,16.91373742,207.23,207.16,20.0]
[1731306790634,16.91373742,207.22,207.15,16.91373742]
[1731306790842,16.91373742,207.19,207.12,16.91373742]
[1731306791022,16.91373742,207.19,207.13,20.0]
[1731306791337,16.91373742,207.21,207.14,16.91373742]
[1731306791717,16.91373742,207.24,207.18,20.0]
[1731306792040,16.91373742,207.23,207.18,20.0]
[1731306792537,16.91373742,207.23,207.15,16.91373742]
[1731306792721,16.91373742,207.23,207.16,36.91373742]
[1731306792925,16.91373742,207.24,207.17,16.91373742]
[1731306793124,4.8244,207.28,207.16,20.0]
[1731306793125,16.91373742,207.22,207.16,20.0]
[1731306793427,16.91373742,207.19,207.12,16.91373742]
[1731306794130,16.91373742,207.16,207.02,0.12549]
[1731306794328,16.91373742,207.12,207.05,16.91373742]
[1731306794642,16.91373742,207.15,207.08,16.91373742]
[1731306795341,16.91373742,207.12,207.04,16.91373742]
[1731306795643,16.91373742,207.13,207.06,16.91373742]
[1731306796131,16.91373742,207.13,207.05,16.91373742]
[1731306796326,4.8267,207.18,207.02,16.68069]
[1731306796327,16.91373742,207.06,207.02,0.12549]
[1731306796526,16.91373742,207.05,207.02,0.12549]
[1731306796730,16.91373742,207.06,207.02,0.12549]
[1731306796936,16.91373742,207.07,207.02,0.12549]
[1731306797326,5.97003041,207.23,207.02,0.12549]
[1731306797327,24.48496249,207.41,207.38,0.1]
[1731306797529,2.51485519,207.47,207.33,0.1]
[1731306797530,0.1,207.8,207.55,0.1]
[1731306797827,58.8898,207.91,207.46,4.36985823]
[1731306797828,3.07598034,207.79,207.65,0.1]
[1731306798132,15.4398,207.91,207.56,86.27853749]
[1731306798133,18.80567525,207.91,207.67,0.1]
[1731306798324,3.26587525,207.91,207.81,16.91373742]
[1731306798525,4.8089,207.95,207.81,16.91373742]
[1731306798526,0.1,207.95,207.81,16.91373742]
[1731306798747,16.91373742,207.94,207.77,24.23775387]
[1731306798937,32.76521047,207.91,207.78,24.84225181]
[1731306799126,0.1,207.95,207.8,24.26383296]
[1731306799444,0.1,207.95,207.79,1.54688751]
[1731306799445,43.28966402,207.87,207.76,67.51829459]
[1731306799738,31.26914081,207.89,207.77,67.52741789]
[1731306800052,43.28966402,207.85,207.75,43.28966402]
[1731306800225,43.28966402,207.87,207.75,43.28966402]
[1731306800426,0.12549,207.86,207.75,43.28966402]
[1731306800627,43.28966402,207.93,207.82,43.28966402]
[1731306800836,43.28966402,207.95,207.84,43.28966402]
[1731306801245,26.9522,207.96,207.86,43.28966402]
[1731306801747,43.28966402,207.93,207.84,43.28966402]
[1731306802137,43.28966402,207.93,207.82,43.28966402]
[1731306802528,43.28966402,207.88,207.76,0.1]
[1731306802729,43.28966402,207.88,207.78,43.28966402]
[1731306803044,23.776884,207.87,207.78,43.28966402]
[1731306803245,43.28966402,207.84,207.74,43.28966402]
[1731306803445,43.28966402,207.81,207.71,0.1]
[1731306803625,43.28966402,207.81,207.72,43.28966402]
[1731306803946,23.776884,207.85,207.76,43.28966402]
[1731306803947,43.28966402,207.85,207.76,43.28966402]
[1731306804136,43.28966402,207.87,207.78,43.28966402]
[1731306804446,23.776884,207.86,207.78,43.28966402]
[1731306804950,22.276884,207.86,207.78,43.28966402]
[1731306805245,0.03352278,207.83,207.76,0.1]
[1731306805438,0.03352278,207.83,207.79,43.28966402]
[1731306806046,0.03352278,207.83,207.77,43.28966402]
[1731306807045,0.03352278,207.83,207.81,43.28966402]
[1731306807347,0.03352278,207.83,207.81,43.38966402]
[1731306807656,0.03352278,207.83,207.81,43.28966402]
[1731306808151,0.03352278,207.83,207.81,43.38966402]
[1731306808827,0.03352278,207.83,207.82,43.28966402]
[1731306810138,0.03352278,207.83,207.81,48.20146402]
[1731306810349,0.03352278,207.83,207.82,43.28966402]
[1731306810956,0.03352278,207.83,207.82,51.18617977]
[1731306811144,26.9522,207.96,207.91,0.1]
[1731306811332,3.47482642,207.95,207.91,0.1]
[1731306811849,3.47482642,207.95,207.94,43.38966402]
[1731306812527,3.47482642,207.95,207.94,48.19866402]
[1731306813247,3.47482642,207.95,207.94,4.909]
[1731306813630,3.47482642,207.95,207.94,48.19866402]
[1731306813848,3.47482642,207.95,207.94,56.22066977]
[1731306814449,3.47482642,207.95,207.94,48.32415402]
[1731306814655,26.9522,207.96,207.95,8.02200575]
[1731306814830,26.9522,207.96,207.95,94.60133379]
[1731306815034,26.9522,207.96,207.95,86.70481804]
[1731306815334,43.28966402,208.14,208.05,0.1]
[1731306815535,43.28966402,208.14,208.06,43.28966402]
[1731306815757,43.28966402,208.13,208.06,43.28966402]
[1731306815955,43.28966402,208.13,208.04,43.28966402]
[1731306816253,4.8022,208.24,208.1,43.28966402]
[1731306816453,43.28966402,208.16,208.08,43.38966402]
[1731306816647,43.28966402,208.16,208.08,43.28966402]
[1731306816955,43.28966402,208.1,208.04,12.1165]
[1731306817141,43.28966402,208.05,207.99,0.1]
[1731306817346,43.28966402,208.03,207.99,0.1]
[1731306817548,43.28966402,208.01,207.97,12.0207]
[1731306817741,43.28966402,207.99,207.94,4.9089]
[1731306818249,43.28966402,208.0,207.94,4.9089]
[1731306818644,43.28966402,208.01,207.94,4.9089]
[1731306819260,43.28966402,207.99,207.94,4.9089]
[1731306819451,43.28966402,208.01,207.94,60.22116402]
[1731306819842,43.28966402,208.02,207.96,0.1]
[1731306820157,43.28966402,208.06,207.98,0.1]
[1731306820340,43.28966402,208.07,208.0,43.38966402]
[1731306820535,49.61716402,208.08,208.0,43.38966402]
[1731306820733,6.3275,208.08,208.05,0.1]
[1731306821455,43.28966402,208.12,208.05,0.1]